Cogmind - Beta 17.1 @@@ ROGUE MODE // 2026.08.17 @ 11:30:12 Player: Infomantis Result: Destroyed by S-27 Virus with Autogun Performance ------------- Evolutions (3) 1500 Regions Visited (6) 1200 Robots Destroyed (152) 760 Value Destroyed (5471) 5471 Prototype IDs (11) 220 Alien Tech Used (0) 0 Bonus (10907) 10907 TOTAL SCORE: 20058 Bonus ------- High Alert Combat Kills 1281 Follower Combat Kills 176 Prayed to X0-1V1 5000 Major X0-1V1 Interference 3750 Entered Garrisons 200 Used RIF Installer 500 Cogmind --------- Core Integrity 0/425 Matter 105/150 Energy 759/1300 System Corruption 0% Temperature Cool (0) Movement Treading (240) Ox1 Location -7/Storage Parts ------- > --- POWER (1) -------- (None) > --- PROPULSION (4) --- Light Treads Improved Aluminum Leg (fused) Light Armored Exoskeleton (fused) > --- UTILITY (6) ------ Medium Storage Unit 0b10 Decoder Chip [Scout] (fused) Self-contained Transmogrifier > --- WEAPON (3) ------- High-powered Shotgun (fused) KE Penetrator (fused) Ripper (fused) > --- INVENTORY (10) --- VSS Leg VSS Leg Improved Cryofiber Web Improved Heat Sink Improved Heat Sink Advanced Beam Cannon Flak Gun Heavy Rocket Launcher Remote Datajack Peak State ------------ > --- POWER ------------ Hybrid Antimatter Reactor > --- PROPULSION ------- Armored Treads Advanced Treads Medium Treads Medium Treads > --- UTILITY ---------- High-capacity Storage Unit Advanced Terrain Scan Processor Advanced Terrain Scan Processor Transmission Jammer Improved Medium Armor Plating Self-contained Transmogrifier > --- WEAPON ----------- Improved Heavy Machine Gun Improved Heavy Machine Gun Flail > --- INVENTORY -------- Improved Cryofiber Web Improved Heat Sink Improved Heat Sink Large Matter Pod Improved Terrain Scanner Seismic Detector 0b10 Decoder Chip [Scout] Core Analyzer Medium Armor Plating Medium Reactive Plating Medium Reactive Plating Relay Coupler [Grunt] Relay Coupler [Hunter] X0-1V1's Piety Tracker Pulse Rifle Advanced Assault Cannon Bore Cannon Heavy Rocket Launcher Heavy Rocket Launcher Remote Datajack [Rating: 69] Favorites ----------- Power Improved Ion Engine Engine Improved Ion Engine Power Core Cooled Fission Core Reactor Hybrid Antimatter Reactor Propulsion Armored Treads Treads Armored Treads Leg Improved Aluminum Leg Flight Unit Improved Flight Unit Utility Self-contained Transmogrifier Device Self-contained Transmogrifier Storage High-capacity Storage Unit Processor Terrain Scan Processor Hackware Hacking Suite Protection Improved Medium Armor Plating Weapon Gatling Laser Energy Gun Gatling Laser Energy Cannon Advanced Beam Cannon Ballistic Gun Gauss Rifle Ballistic Cannon Assault Cannon Launcher Heavy Rocket Launcher Special Weapon Mining Laser Impact Weapon Heavy Flail Slashing Weapon Blade Saw Build | -11 -10 -9 -8 -8 -7 -7 ------- Run | Yrd Mat Mat Mat Gar Fac Sto Slots Evolved 6 | . . 2 2 . 2 . Power . | . . . . . . . Propulsion 1 | . . . . . 1 . Utility 4 | . . 1 2 . 1 . Weapon 1 | . . 1 . . . . Parts Attached 87 | 7 7 14 8 14 37 . Power 9 | 1 1 . 1 4 2 . Engine 4 | 1 1 . 1 1 . . Core 5 | . . . . 3 2 . Reactor . | . . . . . . . Propulsion 21 | 2 2 4 3 2 8 . Treads 15 | 2 2 3 3 2 3 . Leg 5 | . . . . . 5 . Wheel . | . . . . . . . Hover . | . . . . . . . Flight 1 | . . 1 . . . . Utility 21 | 2 2 3 2 2 10 . Device 10 | 1 . 2 2 1 4 . Storage 6 | 1 2 1 . . 2 . Processor 1 | . . . . . 1 . Hackware 1 | . . . . . 1 . Protection 3 | . . . . 1 2 . Artifact . | . . . . . . . Weapon 36 | 2 2 7 2 6 17 . Energy Gun 12 | 1 1 3 1 2 4 . Energy Cannon 4 | . . 1 . . 3 . Ballistic Gun 11 | 1 . 3 1 3 3 . Ballistic Cannon 2 | . . . . . 2 . Launcher 3 | . . . . 1 2 . Special Weapon 2 | . 1 . . . 1 . Impact Weapon 2 | . . . . . 2 . Slashing Weapon . | . . . . . . . Piercing Weapon . | . . . . . . . Special Melee Weapon . | . . . . . . . Unidentified Prototypes 6 | . . 4 . . 2 . Parts Lost 32 | . . 1 1 9 20 1 Power 5 | . . . . 3 2 . Propulsion 8 | . . . . 2 6 . Utility 9 | . . . . 1 7 1 Weapon 10 | . . 1 1 3 5 . Highest Loss Streak 8 | . . 1 1 4 8 1 To Critical Strikes . | . . . . . . . Average Backups 15 | 4 9 15 19 19 17 9 Power . | . 1 1 . . . . Propulsion 1 | . 2 2 4 2 . 2 Utility 8 | 1 4 8 8 11 10 3 Weapon 4 | 1 2 2 5 5 4 3 Tool/Special . | . . . . . . . Unused Backups 34 | . 4 6 5 2 12 5 Power 2 | . 1 1 . . . . Propulsion 13 | . 1 3 4 2 1 2 Utility 14 | . . 1 1 . 9 3 Weapon 4 | . 1 1 . . 2 . Tool/Special 1 | . 1 . . . . . Average Slot Usage (%) 94 | . 99 94 96 97 92 71 Engine 4 | . 13 1 7 4 . . Core 3 | . . 8 . 2 4 . Treads 22 | . 27 25 25 24 18 7 Leg 2 | . . . . . 5 14 Device 17 | . 14 19 23 16 17 20 Storage 9 | . 14 10 8 7 9 7 Processor 4 | . . . 8 7 6 . Hackware 1 | . . . . 5 . . Protection 2 | . . . . 1 5 . Energy Gun 11 | . 13 17 15 13 8 . Ballistic Gun 9 | . 13 5 4 9 8 14 Slashing Weapon 1 | . . . . 2 . 5 Peak Build Rating 69 | 7 20 38 52 53 69 55 Average Rating 42 | 6 9 31 50 48 60 54 On Entrance 31 | . 7 20 37 50 53 53 Avg Prop Armor Cover (%) 6 | . . . . . 6 7 Naked Turns . | . . . . . . . Heaviest Build 86 | 13 31 60 63 69 86 27 Greatest Support 99 | 40 40 63 66 79 99 43 Greatest Overweight (x) 9 | . . . . 1 9 . Average Overweight (x) . | . . . . . . . Largest Inventory Capacity 20 | 8 15 20 20 20 20 10 Average Capacity 16 | 7 10 15 20 20 17 10 Most Carried 20 | 7 15 20 20 20 20 9 Average Carried 15 | 4 9 15 19 19 16 9 Final Capacity 20 | 8 15 20 20 20 10 10 Final Carried 20 | 7 15 20 19 20 9 9 Transmogrified Parts 68 | . 1 10 8 18 28 3 Integrity Recovered 1501 | . 42 232 128 348 711 40 Class Distribution -------------------- 36% | Mutant 26% | Gunner 18% | Tank 5% | Scavenger-Gunner 5% | Scavenger-Tank 3% | Scavenger-Mutant Dominant Class ---------------- Mutant | -10/Materials Gunner | -9/Materials Gunner | -8/Materials Gunner | -8/Garrison Tank | -7/Factory Mutant | -7/Storage Resources | -11 -10 -9 -8 -8 -7 -7 ----------- Run | Yrd Mat Mat Mat Gar Fac Sto Matter Collected 2983 | 375 300 351 132 632 1193 . Remotely . | . . . . . . . Salvage Created 5531 | 261 390 888 529 840 2623 . Parts 277 | 15 33 32 26 52 119 . Haulers Intercepted 4 | . 1 1 . . 2 . Recyclers Shooed 5 | . 1 . . . 4 . Parts Field Recycled . | . . . . . . . Retrieved Matter . | . . . . . . . Parts Self-Destructed . | . . . . . . . Prevented . | . . . . . . . Parts Restored . | . . . . . . . Kills | -11 -10 -9 -8 -8 -7 -7 ------- Run | Yrd Mat Mat Mat Gar Fac Sto Combat Hostiles Destroyed 120 | . 13 19 11 26 51 . Guns 89 | . 13 10 9 18 39 . Cannons 7 | . . 3 1 . 3 . AOE 17 | . . 2 . 8 7 . Classes Destroyed 15 | 3 5 3 1 1 2 . Worker 5 | 1 . . . . 4 . Builder 3 | . 1 . . . 2 . Tunneler 7 | 6 . . . . 1 . Hauler 4 | . 1 1 . . 2 . Recycler 4 | 1 . . 1 . 2 . Mechanic 2 | . . . . . 2 . Operator 3 | . . 1 . . 2 . Watcher 2 | . 1 . . . 1 . Swarmer 24 | . 7 . 4 8 5 . Grunt 49 | . 6 12 3 8 20 . Brawler 6 | . . 3 . 1 2 . Duelist 2 | . . . . . 2 . Sentry 15 | . . 4 3 3 5 . Hunter 18 | . . . 1 3 14 . Programmer 8 | . . . . 3 5 . Best Kill Streak 13 | 2 3 5 4 13 7 . Combat Bots Only 13 | . 3 4 4 13 7 . Max Kills in Single Turn 4 | 1 1 1 2 4 3 . Gunslinging 1 | . . . . . 1 . Exploded 4 | . . 1 . 4 2 . Melee . | . . . . . . . Uniques/NPCs Destroyed . | . . . . . . . Combat | -11 -10 -9 -8 -8 -7 -7 -------- Run | Yrd Mat Mat Mat Gar Fac Sto Hostile Shots Fired 774 | . 45 78 48 129 464 10 Missed 239 | . 16 26 11 33 151 2 Hits 535 | . 29 52 37 96 313 8 Projectile 535 | . 29 52 37 96 313 8 Critical Strikes 11 | . . 2 . 4 5 . Damage Taken 6927 | . 298 673 515 1560 3754 127 Core 735 | . 61 91 13 134 421 15 Absorbed by Shields 32 | . . . . . 32 . Redirected to Shielding 32 | . . . . . 32 . Ignored by Resistances 343 | . . . . . 343 . Core Remaining (%) 74 | 100 39 63 . 95 . . Volleys Fired 351 | 35 41 38 44 58 132 3 Largest 4 | 2 2 3 3 4 3 2 Hottest 218 | 70 100 171 150 218 183 58 Shots Fired 787 | 70 77 79 83 145 327 6 Gun 715 | 70 75 70 59 140 295 6 Cannon 55 | . . 9 24 . 22 . Launcher 10 | . . . . 5 5 . Special 7 | . 2 . . . 5 . Kinetic 387 | 35 39 22 38 72 175 6 Thermal 337 | 35 38 30 27 66 141 . Explosive 10 | . . . . 5 5 . Electromagnetic 48 | . . 27 18 2 1 . Robot Hit Streak 23 | 6 12 17 13 23 18 2 Robot Miss Streak 6 | 3 4 6 2 3 4 2 Penetration Max 1 | . . . . . 1 . Secondary Targets 13 | . 3 1 . 2 7 . Max Gunslinging Chain 1 | . 1 1 . 1 1 . Shots Hit Robots 532 | 41 44 68 49 86 241 3 Core Hits 294 | 9 32 42 20 48 143 . Critical Kills . | . . . . . . . Critical Parts Destroyed 6 | . . 3 . . 3 . Critical Strikes 23 | 3 . 5 3 5 7 . Burn 16 | 3 . 1 3 5 4 . Destroy 1 | . . . . . 1 . Corrupt 1 | . . 1 . . . . Smash 5 | . . 3 . . 2 . Melee Attacks 52 | . . 13 . . 38 1 Impact 46 | . . 13 . . 32 1 Slashing 6 | . . . . . 6 . Piercing . | . . . . . . . Sneak Attacks 2 | . . . . . 2 . Combat Hostiles . | . . . . . . . Follow-up Attacks . | . . . . . . . Damage Inflicted 12464 | 522 588 1287 885 2141 6976 65 Guns 9323 | 522 588 832 759 1513 5044 65 Cannons 405 | . . 119 65 . 221 . Explosions 1850 | . . 79 61 628 1082 . Melee 859 | . . 249 . . 610 . Ramming 27 | . . 8 . . 19 . Kinetic 4539 | 270 251 225 225 754 2749 65 Thermal 4700 | 252 337 441 432 722 2516 . Explosive 1710 | . . . . 628 1082 . Electromagnetic 629 | . . 364 228 37 . . Impact 859 | . . 249 . . 610 . Slashing . | . . . . . . . Piercing . | . . . . . . . Highest Corruption 1 | . . . . 1 . . Average Corruption 1 | . . . . 1 . . Corruption Purged . | . . . . . . . Corruption Blocked . | . . . . . . . Effects 8 | . . . . 8 . . Message Errors 4 | . . . . 4 . . Matter Fused 2 | . . . . 2 . . Data Loss (minor) 1 | . . . . 1 . . Data Loss (major) 1 | . . . . 1 . . Overload Shots . | . . . . . . . Overflow Damage 447 | . . 96 . 28 323 . Projectiles . | . . . . . . . Explosions 130 | . . . . 28 102 . Melee 317 | . . 96 . . 221 . Knockbacks 4 | . . 1 . . 3 . Impact 3 | . . 1 . . 2 . Kinetic 1 | . . . . . 1 . Secondary . | . . . . . . . Self-Inflicted Damage 131 | . . . . 73 58 . Shots 3 | . . . . 2 1 . Rammed 7 | . . 3 . . 4 . Targets Rammed 7 | . . 3 . . 4 . Kicked . | . . . . . . . Crushed . | . . . . . . . Highest Temperature 425 | 81 160 425 252 324 227 . Average Temperature 87 | 30 43 159 98 94 41 . Received Heat Transfer 1590 | . 90 369 126 234 771 . Effects 4 | . . 2 . 2 . . Shutdowns 1 | . . 1 . . . . Energy Bleed 2 | . . 1 . 1 . . Matter Decay 1 | . . . . 1 . . Siege Activations . | . . . . . . . Martial Activations . | . . . . . . . Shielding Activations . | . . . . . . . Robots Disrupted . | . . . . . . . Combat Hostiles . | . . . . . . . Robots Corrupted 4 | . . 3 . . 1 . Combat Hostiles 4 | . . 3 . . 1 . Parts Fried 6 | . . 6 . . . . Impact Corruptions 9 | . . 4 . . 5 . Robots Melted 4 | . . 2 1 . 1 . Combat Hostiles 3 | . . 1 1 . 1 . Parts Melted 24 | 1 . 4 3 5 11 . Heat Transferred 10989 | 962 625 598 1086 2007 5711 . Parts Sabotaged . | . . . . . . . Parts Stolen . | . . . . . . . Parts Stripped . | . . . . . . . Power Chain Reactions 3 | . . 2 1 . . . Alert | -11 -10 -9 -8 -8 -7 -7 ------- Run | Yrd Mat Mat Mat Gar Fac Sto Maximum Alert Level 4 | . . 1 1 3 4 2 Low Security (%) 34 | 100 100 57 92 3 . . Level 1 8 | . . 42 7 9 . . Level 2 32 | . . . . 41 57 100 Level 3 18 | . . . . 45 25 . Level 4 5 | . . . . . 17 . Level 5 . | . . . . . . . High Security . | . . . . . . . Max Security . | . . . . . . . Peak Influence 1232 | 10 146 240 213 960 1232 573 Initial 557 | . . . 74 125 504 557 Average 457 | 1 45 156 128 672 758 493 Influence Increases 3986 | 40 403 591 399 925 1611 17 Destroy 0b10 Robot/C 2500 | . 260 380 220 580 1060 . Destroy 0b10 Robot/NC 150 | 40 15 10 5 . 80 . Destroy Leader 412 | . 54 92 70 20 176 . Allied During Kill 82 | . . . . 42 40 . Successful Hack 58 | . 11 16 4 6 21 . Select Force Hacks 30 | . . 30 . . . . Disable Machine 195 | . 30 30 60 15 45 15 Anti-Garrison Action 150 | . . . . 150 . . Destroy Structure 154 | . 3 3 25 52 69 2 Partial Spotted 45 | . . . 15 15 15 . Lose Combat Pursuer 210 | . 30 30 . 45 105 . Influence Decreases 3582 | 40 401 415 384 158 1346 838 Entered New Map 1298 | . . 2 104 68 456 668 Time Decay 1924 | 40 401 403 270 . 650 160 Lost Part 320 | . . 10 10 90 200 10 Lost Ally 40 | . . . . . 40 . Squads Dispatched 29 | . 3 4 4 . 17 1 Investigation 6 | . 2 3 . . 1 . Extermination 4 | . . . . . 4 . Reinforcement 10 | . 1 1 . . 7 1 Assault 4 | . . . . . 4 . Garrison 5 | . . . 4 . 1 . Intercept . | . . . . . . . Searches Triggered . | . . . . . . . Construction Impeded 2 | . . . . . 2 . Haulers Reinforced 2 | . . . . . 2 . Active Scanning Responses . | . . . . . . . Cargo Convoy Interrupts . | . . . . . . . Stealth | -11 -10 -9 -8 -8 -7 -7 --------- Run | Yrd Mat Mat Mat Gar Fac Sto Distress Signals 7 | . 2 1 . . 4 . Communications Jammed 1 | . . . . . 1 . Distress Signals 1 | . . . . . 1 . Times Spotted 168 | . 24 22 14 28 75 5 Peak Tracking Total 7 | . 3 6 3 6 7 5 Tactical Retreats 13 | . 1 2 . 3 7 . Traps | -11 -10 -9 -8 -8 -7 -7 ------- Run | Yrd Mat Mat Mat Gar Fac Sto Traps Triggered 11 | . 4 2 1 3 1 . Indirectly . | . . . . . . . Trap Hack Attempts . | . . . . . . . Triggered . | . . . . . . . Disarmed . | . . . . . . . Reprogrammed . | . . . . . . . Reused . | . . . . . . . Traps Extracted . | . . . . . . . Installed . | . . . . . . . Triggered . | . . . . . . . Machines | -11 -10 -9 -8 -8 -7 -7 ---------- Run | Yrd Mat Mat Mat Gar Fac Sto Machines Disabled 15 | . 2 2 4 3 3 1 Max in Single Turn 2 | . 1 1 2 2 1 1 Garrison Access 2 | . . . . . 2 . Garrison Relay 1 | . . . . 1 . . Phase Generator 1 | . . . . 1 . . Machines Repaired . | . . . . . . . Machines Dismantled . | . . . . . . . Machines Sabotaged . | . . . . . . . Overloaded Fab Kills . | . . . . . . . Hacking | -11 -10 -9 -8 -8 -7 -7 --------- Run | Yrd Mat Mat Mat Gar Fac Sto Machines Accessed 22 | . 6 3 3 3 6 1 Terminals 18 | . 5 2 2 3 5 1 Fabricators . | . . . . . . . Repair Stations . | . . . . . . . Recycling Units 2 | . 1 1 . . . . Scanalyzers . | . . . . . . . Garrison Access 2 | . . . 1 . 1 . Total Hacks 39 | . 14 5 4 5 10 1 Successful 14 | . 2 2 2 2 5 1 Failed 24 | . 11 3 2 3 5 . Catastrophic 6 | . 2 1 1 1 1 . Database Lockouts 1 | . 1 . . . . . Manual 24 | . 15 1 3 . 5 . Terminals 34 | . 12 4 3 5 9 1 Fabricators . | . . . . . . . Repair Stations . | . . . . . . . Recycling Units 3 | . 2 1 . . . . Scanalyzers . | . . . . . . . Garrison Access 2 | . . . 1 . 1 . Terminal Hacks 8 | . 2 1 1 2 1 1 Part Schematic 1 | . 1 . . . . . Open Door 1 | . . . . 1 . . Branch Access Points 3 | . . 1 1 . 1 . Maintenance Status 1 | . 1 . . . . . Zone Layout 1 | . . . . . . 1 Patrol Navigation 1 | . . . . 1 . . Fabricator Hacks . | . . . . . . . Repair Station Hacks . | . . . . . . . Recycling Unit Hacks . | . . . . . . . Scanalyzer . | . . . . . . . Garrison Access Hacks 2 | . . . 1 . 1 . Unlock Access 1 | . . . 1 . . . Seal Access 1 | . . . . . 1 . Unauthorized Hacks 4 | . . 1 . . 3 . Terminals 3 | . . . . . 3 . Botnet 2 | . . . . . 2 . Operators 1 | . . . . . 1 . Fabricators . | . . . . . . . Repair Stations . | . . . . . . . Recycling Units 1 | . . 1 . . . . Tunnel 1 | . . 1 . . . . Scanalyzers . | . . . . . . . Garrison Access . | . . . . . . . Data Cores Recovered . | . . . . . . . Used . | . . . . . . . Hacking Detections 13 | . 5 1 1 2 4 . Full Trace Events 4 | . 3 . . . 1 . Feedback Events 1 | . . . . . 1 . Hackware Fried 1 | . . . . . 1 . Feedback Blocked . | . . . . . . . Robot Schematics Acquired . | . . . . . . . Robots Built . | . . . . . . . Authchips . | . . . . . . . Time . | . . . . . . . Total Robot Build Rating . | . . . . . . . Part Schematics Acquired 1 | . 1 . . . . . Parts Built . | . . . . . . . Authchips . | . . . . . . . Time . | . . . . . . . Total Part Build Rating . | . . . . . . . Part Studies Acquired . | . . . . . . . Parts Repaired . | . . . . . . . Time . | . . . . . . . Parts Recycled . | . . . . . . . Recycled Matter . | . . . . . . . Retrieved Matter . | . . . . . . . Retrieved Components . | . . . . . . . Parts Scanalyzed . | . . . . . . . Part Schematics Acquired . | . . . . . . . Parts Damaged . | . . . . . . . Bothacking | -11 -10 -9 -8 -8 -7 -7 ------------ Run | Yrd Mat Mat Mat Gar Fac Sto Used RIF Installer 1 | . . . . 1 . . Alert ID Control 1 | . . . . 1 . . Robots Hacked 2 | . . . . . 2 . Non-combat . | . . . . . . . Combat 2 | . . . . . 2 . Robot Hacks Applied 2 | . . . . . 2 . amplify_resonance 2 | . . . . . 2 . Relay Couplers Released 11 | . . . . 4 7 . Machine Destruction 4 | . . . . 4 . . Programmers 7 | . . . . . 7 . Attached 1 | . . . . . 1 . Fabnet Peak Effective % . | . . . . . . . Robots Rewired 3 | . . . . 3 . . Allies Hacked . | . . . . . . . Hacks Repelled . | . . . . . . . Allies | -11 -10 -9 -8 -8 -7 -7 -------- Run | Yrd Mat Mat Mat Gar Fac Sto Total Allies 5 | . . . . 5 . . Largest Group 5 | . . . . 5 5 . Highest-Rated Group 118 | . . . . 118 118 . Highest-Rated Ally 39 | . . . . 39 39 . Total Orders . | . . . . . . . Ally Attacks 28 | . . . . 12 16 . Total Damage 483 | . . . . 198 285 . Kills 6 | . . . . 3 3 . Allies Corrupted . | . . . . . . . Allies Melted . | . . . . . . . X0-1V1 Amusement Gains 181 | . 5 15 8 87 22 44 Average Entertainment 69 | . 7 14 16 87 97 57 Good Acts 23 | . . 6 4 6 5 2 Bad Acts 26 | . . 5 1 4 14 2 Intel | -11 -10 -9 -8 -8 -7 -7 ------- Run | Yrd Mat Mat Mat Gar Fac Sto Active Infowar (turns) 4325 | 174 1045 . 502 1050 1534 20 Sensors 197 | . . . . . 197 . Seismic 2485 | 174 1045 . 502 764 . . Decoding 20 | . . . . . . 20 Machine Analysis 1779 | . . . . 286 1493 . Jamming 580 | . . . . . 580 . Robot Analysis Total . | . . . . . . . Derelict Logs Recovered . | . . . . . . . Drone Launches . | . . . . . . . Drone Recoveries . | . . . . . . . Exploration | -11 -10 -9 -8 -8 -7 -7 ------------- Run | Yrd Mat Mat Mat Gar Fac Sto Turns Passed 7403 | 286 1100 1042 582 1672 2388 333 Spaces Moved 3509 | 100 570 506 250 875 1134 74 Core 3 | 2 . . . . 1 . Treads 3073 | 98 570 506 250 875 774 . Legs 433 | . . . . . 359 74 Wheels . | . . . . . . . Hover . | . . . . . . . Flight . | . . . . . . . Fastest Speed 50 | 50 160 160 161 160 112 130 Average Speed 159 | 157 160 161 163 163 156 130 Slowest Speed 500 | 160 160 165 166 245 500 130 Overloaded Moves . | . . . . . . . Propulsion Burnouts . | . . . . . . . Robots Hopped . | . . . . . . . Potential Cave-ins . | . . . . . . . Cave-ins Triggered . | . . . . . . . Exploration Rate (%) 43 | 5 92 39 30 90 34 14 Regions Visited 6 Branch Regions 1 Pre-discovered Areas 1 | . . 1 . . . . Known Exits Taken 2 | . . . 1 . 1 . Unknown Exits Taken 3 | 1 1 1 . . . . Scrap Searched . | . . . . . . . Spaces Dug 26 | . 1 . 4 . 21 . Terrain Destroyed 186 | . 1 2 39 77 65 2 Melee 17 | . . . . . 17 . Projectile 16 | . 1 . 9 . 4 2 AOE 153 | . . 2 30 77 44 . Terrain Rammed . | . . . . . . . Walls Destroyed . | . . . . . . . Machines Disabled . | . . . . . . . Actions | -11 -10 -9 -8 -8 -7 -7 --------- Run | Yrd Mat Mat Mat Gar Fac Sto Total 4576 | 155 681 649 358 1003 1427 303 Wait 388 | 7 32 41 30 12 41 225 Move 3504 | 99 569 505 250 874 1133 74 Hop . | . . . . . . . Pick Up 73 | 7 12 18 12 9 15 . Fast Attach 45 | 7 5 9 2 7 15 . Attach 25 | . . 4 6 4 11 . Detach 2 | . 1 . 1 . . . Swap 46 | . 10 3 3 6 24 . Drop 55 | . 11 15 10 5 14 . Fire 351 | 35 41 38 44 58 132 3 Melee 52 | . . 13 . . 38 1 Ram . | . . . . . . . Kick . | . . . . . . . Crush 7 | . . 3 . . 4 . Escape Stasis . | . . . . . . . Rewire 28 | . . . . 28 . . Trap . | . . . . . . . Miscellaneous . | . . . . . . . Route ------- -11/Scrapyard -10/Materials (discovered 5 exits: *Mat x3 / [*Min] / [*Sub]) -9/Materials (discovered 3 exits: *Mat / Min x2) -8/Materials (discovered 2 exits: *Fac / Gar) -8/Garrison (discovered 3 exits: *Fac x3) -7/Factory (discovered 6 exits: *Fac x2 / *Sto x2 / *Low x2) -7/Storage History --------- Turn | Location | Event 15 | -11/Scrapyard | Discovered new exit (range 15) 287 | -11/Scrapyard | Entered Materials 307 | -10/Materials | Build established: Mutant 524 | -10/Materials | Discovered new exit (range 7) 602 | -10/Materials | Discovered new exit (range 11) 696 | -10/Materials | Central database locked down 743 | -10/Materials | Discovered new exit (range 15) 1241 | -10/Materials | Discovered new exit (range 15) 1321 | -10/Materials | Discovered new exit (range 6) 1333 | -10/Materials | Made a sacrifice at D.C.S.S. Altar Unit 1333 | -10/Materials | Forcibly received Sfc. Transmogifier from X0-1V1 1334 | -10/Materials | Core integrity fell below 50% 1387 | -10/Materials | Entered another Materials area 1387 | -9/Materials | Evolved 2 slots: Utility x1, Weapon x1 1438 | -9/Materials | X0-1V1 foreshadows a heat wave 1625 | -9/Materials | Ambient heat levels rising (+10) 1725 | -9/Materials | X0-1V1 sent hostile B-36 Bruiser (x3) 1815 | -9/Materials | Propulsion slot count permanently improved by X0-1V1 (+1) 1866 | -9/Materials | Ambient heat levels rising (+10) 1904 | -9/Materials | Weapon slot count temporarily expanded by X0-1V1 (+1) 1919 | -9/Materials | X0-1V1 caused items to flee you 1977 | -9/Materials | Build established: Gunner 2014 | -9/Materials | Discovered new exit (range 19) 2067 | -9/Materials | Identified exit to Mines 2070 | -9/Materials | Ambient heat levels falling (-10) 2155 | -9/Materials | Items stopped fleeing you 2189 | -9/Materials | X0-1V1 sent you into danger 2244 | -9/Materials | Ambient heat levels falling (-10) 2301 | -9/Materials | Weapon slot count reverted to normal (-1) 2429 | -9/Materials | Entered another Materials area 2429 | -8/Materials | Evolved 2 slots: Utility x2 2434 | -8/Materials | Melee accuracy permanently improved by X0-1V1 (+5%; -50 max core) 2553 | -8/Materials | Garrison activated, responded to threat 2702 | -8/Materials | X0-1V1 sent you to a vault 2891 | -8/Materials | Discovered new exit (range 12) 2960 | -8/Materials | Garrison activated, responded to threat 3011 | -8/Materials | Identified exit to Garrison 3011 | -8/Materials | Entered Garrison 3068 | -8/Garrison | Phase Generator disabled 3121 | -8/Garrison | Triggered checkpoint 3214 | -8/Garrison | Triggered checkpoint 3222 | -8/Garrison | Triggered checkpoint 3225 | -8/Garrison | Triggered checkpoint 3284 | -8/Garrison | Destroyed 13 combat bots 3288 | -8/Garrison | Lost 3 parts (1p1u1w) 3321 | -8/Garrison | Weapon slot count temporarily expanded by X0-1V1 (+1) 3363 | -8/Garrison | Triggered checkpoint 3419 | -8/Garrison | Discovered new exit (range 10) 3729 | -8/Garrison | Triggered checkpoint 3763 | -8/Garrison | Triggered checkpoint 3770 | -8/Garrison | Garrison Relay disabled 3827 | -8/Garrison | Lost 4 parts (1p1n2w) 3831 | -8/Garrison | Rescued a captive Derelict 3834 | -8/Garrison | Rescued a captive Derelict 3971 | -8/Garrison | Weapon slot count reverted to normal (-1) 4037 | -8/Garrison | Triggered checkpoint 4063 | -8/Garrison | Core integrity restored by X0-1V1 (+59) 4108 | -8/Garrison | Build established: Scavenger-Gunner 4156 | -8/Garrison | Discovered new exit (range 13) 4199 | -8/Garrison | Heat dissipation permanently improved by X0-1V1 (+15; -75 max core) 4207 | -8/Garrison | Triggered checkpoint 4372 | -8/Garrison | Installed Relay Interface Framework 4392 | -8/Garrison | Discovered new exit (range 5) 4406 | -8/Garrison | X0-1V1 activates XOMVISION 4427 | -8/Garrison | Triggered checkpoint 4644 | -8/Garrison | Build established: Tank 4680 | -8/Garrison | Expanded RIF knowledge: Alert ID Control 4683 | -8/Garrison | Entered Factory 4683 | -7/Factory | Accompanied by 5 allies 4683 | -7/Factory | Evolved 2 slots: Propulsion x1, Utility x1 4766 | -7/Factory | Hacking Suite fried by hacking feedback 4917 | -7/Factory | X0-1V1 enhanced Transport squad support 5266 | -7/Factory | X0-1V1 announced a LAN party 5289 | -7/Factory | X0-1V1 redirected Transport squads to designated parking area 5333 | -7/Factory | Build established: Gunner 5355 | -7/Factory | Discovered new exit (range 8) 5477 | -7/Factory | Identified exit to Factory 5483 | -7/Factory | First assault squad dispatched 5622 | -7/Factory | X0-1V1 activates XOMVISION 5872 | -7/Factory | Build established: Tank 5896 | -7/Factory | Discovered exit to Factory (range 13) 6261 | -7/Factory | Lost 3 parts (1n2u) 6264 | -7/Factory | Core integrity fell below 50% 6386 | -7/Factory | Garrison activated, responded to threat 6438 | -7/Factory | Destroyed 7 combat bots 6439 | -7/Factory | Core integrity fell below 20% 6467 | -7/Factory | Lost 8 parts (1p3n2u2w) 6567 | -7/Factory | Identified exit to Storage 6567 | -7/Factory | Identified exit to Lower Caves 6848 | -7/Factory | X0-1V1 sent hostile S-27 Virus (x5) 6893 | -7/Factory | X0-1V1 sent you into danger 7071 | -7/Factory | Entered Storage 7149 | -7/Storage | Build established: Mutant 7398 | -7/Storage | X0-1V1 sent hostile S-27 Virus (x5) 7404 | -7/Storage | Destroyed by S-27 Virus with Autogun Last Messages --------------- S006. 07103_ U-05 Engineer builds a Wall. 07103_ Connecting with Terminal... >>Layout(Zone) Retrieving Zone 8U layout... Downloaded map data. 07128_ Detecting nearby Garrison Access. 07144_ Sfc. Transmogrifier converts Hvy. Flail into Ripper. 07196_ X0-1V1: "Did you know you're leaking matter?" (-150 matter capacity) 07271_ X0-1V1: "Let the electrons flow!" (+1200 energy capacity) 07354_ X0-1V1 points here and there (5 item locations revealed). 07384_ Sfc. Transmogrifier converts Remote Shield into 0b10 Decoder Chip [Scout]. 07398_ X0-1V1: "Some new friends to play with." S-27 Virus form resolidifies at new position. 07400_ X0-1V1's Piety Tracker destroyed. 07400_ X0-1V1 is mildly amused. 07401_ Slug penetrates S-27 Virus. 07404_ X0-1V1 laughs nastily! Map ----- +----------------------------------------------------+ | ????#""G""?# #???????????????????????? | | ?####"" ""## #???????????????????????? | | ?? #???????????????????????? | | ???# #???????????????????????? | | ???# ![! +???????????????????????? | | ???# [[! #???????????????????????? | | ???# [!! #???????????????????????? | | ???? #???????????????????????? | | ???????? #???????????????????????? | | ???????????# #???????????????????????? | | ???????????# ###########?????????????? | | ???????????# ## #?????????????? | | ???????????# ## #?????????????? | | ???? #?# ## #?????????????? | | ???? #?# ## "" #?????????????? | | ??[? =#?# ##""" #?????????????? | | ????! #?# ##"T #?????????????? | | ?=?? #?# ##"" #?????????????? | | ???? #?# ## "" #?????????????? | | ????######## ## #?????????????? | | ????####### ####+######????????????? | | ???? # #????????????? | | ???? T # " #????????????? | | ???? # #????????????? | | ????""" # ####+######????????????? | | ????""" ######; s @#????????????? | | ????""" #?????# "" #????????????? | | ????#### ##?????#s"" #????????????? | | ??/? #?###??????# "T [[ #????????????? | | ???? ##?????????# "" [[ #????????????? | | ???? #?????????# "" [ #????????????? | | ???? ##?????????# s #????????????? | | ???? #??????????# s #????????????? | | ???? #??????????###########????????????? | | ????##?????????????????????????????????? | | | | | | | | | | | | | | | | | | | | | | | | | | | | | | | +----------------------------------------------------+ Best States ------------- Heat Dissipation 63 Energy Generation 45 Energy Capacity 1300 Matter Stores 450 Matter Capacity 450 Sight Range 19 Robot Scan Range 15 Terrain Scan Density 410 Jamming Range 12 Armor Coverage 450 Resistance: KI 30 Resistance: EX 25 Weapon Shielding 15 Evasion (%) 55 Targeting Accuracy 20 Recoil Reduction 4 Particle Charging 20 Offensive Hacking 10 Relay Coupler Types 1 Relay Coupler Value 38 Item Schematics ----------------- Huge Storage Unit | -10/Materials | Hacked Robot Schematics ------------------ None Fabricated ------------ Nothing Repaired ---------- Nothing Studied --------- None Alien Tech Used ----------------- None Achievements -------------- None Challenges ------------ None Game ------ Seed GuidedBiocellTerrabomb Manual? 0 Play Time 01:02:50 Cumulative 687.0 hours Start 2026.08.17 @ 02:52:47 End 2026.08.17 @ 11:30:12 Sessions 4 Manual Loads 0 Difficulty Rogue Special Mode None Game No. 379 Rogue 354 Adventurer 7 Explorer 18 Win Type - Total 67 Types 43/3/9/2/2/1/2/3/0/2 Lore% 95 Gallery% 88 Achievement% 75 Wizard Run 0 Options --------- Layout 0 ASCII 0 Keyboard 0 Movement Numpad Keybinds 0 Fullscreen 1 Font 18/SmallcapsGlow Map View 76x50 Zoom Use 0% Tactical HUD 1 Map Filters NONE Filters NONE Steam 1 RUN: af86390d-b376-4e16-839a-ceb2fe27e025